fUST/lending_fUST_20240927
["ID","MTS","AMOUNT","RATE_DAILY","PERIOD"]
[339260130,1727415040729,-260.090257,0.00019452,2]
[339260131,1727415040739,-525.19,0.00019452,2]
[339260132,1727415040748,-151.0,0.00019452,2]
[339260133,1727415040758,-500.0,0.00019452,2]
[339260134,1727415040767,-500.0,0.00019452,2]
[339260135,1727415040777,-3558.31367492,0.00019452,2]
[339260154,1727415042906,-1441.68632508,0.00019452,2]
[339260155,1727415042917,-288.23,0.00019452,2]
[339260156,1727415042926,-151.0,0.00019452,2]
[339260157,1727415042936,-543.63178,0.00019452,2]
[339260158,1727415042945,-662.74,0.00019452,2]
[339260159,1727415042954,-241.86794283,0.00019452,2]
[339260160,1727415042963,-543.63178,0.00019452,2]
[339260161,1727415042973,-1000.0,0.00019452,2]
[339260162,1727415042982,-375.7,0.00019452,2]
[339260163,1727415042992,-205.720564,0.00019452,2]
[339260164,1727415043001,-205.720564,0.00019452,2]
[339260165,1727415043011,-606.19330133,0.00019452,2]
[339260166,1727415043020,-500.0,0.00019452,2]
[339260167,1727415043029,-500.0,0.00019452,2]
[339260168,1727415043039,-198.585319,0.00019452,2]
[339260169,1727415043049,-18690.03,0.00019452,2]
[339260170,1727415043058,-198.585319,0.00019452,2]
[339260171,1727415043067,-500.0,0.00019452,2]
[339260172,1727415043077,-3443.8,0.00019452,2]
[339260173,1727415043086,-151.0,0.00019452,2]
[339260174,1727415043095,-153.1610119,0.00019452,2]
[339260175,1727415043106,-153.0,0.00019562,2]
[339260176,1727415043115,-153.0,0.00019562,2]
[339260177,1727415043124,-153.0,0.00019562,2]
[339260178,1727415043134,-153.0,0.00019562,2]
[339260179,1727415043143,-153.0,0.00019562,2]
[339260180,1727415043154,-306.0,0.00019562,2]
[339260181,1727415043163,-1466.18298167,0.00019617,10]
[339260182,1727415043172,-151.0,0.00019696,2]
[339260183,1727415043181,-151.0,0.00019696,2]
[339260184,1727415043191,-151.0,0.00019696,2]
[339260185,1727415043200,-8368.03708943,0.00019696,3]
[339260189,1727415045854,-172.52427923,0.00019178,2]
[339260190,1727415045866,-35417.48481697,0.00019696,3]
[339260191,1727415045882,-29933.9863757,0.00019696,3]
[339260192,1727415045892,-150.112233,0.000197,2]
[339260193,1727415045901,-198.474848,0.00019706,2]
[339260194,1727415045911,-151.0,0.00019706,2]
[339260195,1727415045921,-151.0,0.00019706,2]
[339260196,1727415045934,-151.0,0.00019706,2]
[339260197,1727415045944,-151.0,0.00019706,2]
[339260198,1727415045955,-151.0,0.00019706,2]
[339260200,1727415045966,-151.0,0.00019706,2]
[339260202,1727415045976,-151.0,0.00019706,2]
[339260203,1727415045995,-151.0,0.00019706,2]
[339260204,1727415046010,-151.0,0.00019706,2]
[339260205,1727415046024,-151.0,0.00019706,2]
[339260206,1727415046041,-29933.9863757,0.00019706,3]
[339260207,1727415046056,-7013.7282871,0.00019708,2]
[339260208,1727415046067,-151.0,0.00019716,2]
[339260209,1727415046079,-151.462988,0.00019716,2]
[339260210,1727415046092,-151.0,0.00019716,2]
[339260211,1727415046108,-151.0,0.00019716,2]
[339260212,1727415046121,-151.0,0.00019716,2]
[339260213,1727415046136,-151.0,0.00019716,2]
[339260214,1727415046150,-427.500876,0.00019716,2]
[339260215,1727415046162,-152.667417,0.00019716,2]
[339260216,1727415046176,-151.0,0.00019716,2]
[339260217,1727415046189,-151.0,0.00019716,2]
[339260218,1727415046202,-151.0,0.00019716,2]
[339260219,1727415046215,-151.0,0.00019716,2]
[339260220,1727415046228,-151.0,0.00019716,2]
[339260221,1727415046241,-151.0,0.00019716,2]
[339260222,1727415046255,-151.0,0.00019716,2]
[339260223,1727415046268,-151.0,0.00019716,2]
[339260224,1727415046281,-164.399626,0.00019716,2]
[339260225,1727415046293,-164.399626,0.00019716,2]
[339260226,1727415046306,-151.0,0.00019716,2]
[339260227,1727415046319,-151.0,0.00019716,2]
[339260228,1727415046331,-543.63178,0.00019716,2]
[339260229,1727415046343,-543.63178,0.00019716,2]
[339260230,1727415046356,-205.720564,0.00019716,2]
[339260231,1727415046366,-205.720564,0.00019716,2]
[339260232,1727415046377,-151.0,0.00019716,2]
[339260233,1727415046388,-170.2199,0.00019716,2]
[339260234,1727415046398,-151.0,0.00019716,2]
[339260235,1727415046411,-198.585319,0.00019716,2]
[339260236,1727415046423,-198.585319,0.00019716,2]
[339260237,1727415046435,-29933.9863757,0.00019716,3]
[339260238,1727415046447,-1000.0,0.00019721,2]
[339260239,1727415046458,-501.3427077,0.00019721,2]
[339260240,1727415046471,-501.01166133,0.00019721,2]
[339260241,1727415046484,-500.0,0.00019721,2]
[339260242,1727415046496,-500.0,0.00019721,2]
[339260243,1727415046509,-160.0,0.00019725,2]
[339260244,1727415046521,-500.0,0.00019725,2]
[339260245,1727415046531,-1930.83,0.00019726,2]
[339260246,1727415046542,-200.0,0.00019726,2]
[339260247,1727415046552,-507.55,0.00019726,2]
[339260248,1727415046562,-500.0,0.00019726,2]
[339260249,1727415046573,-500.0,0.00019726,2]
[339260250,1727415046584,-1495.5,0.00019726,2]
[339260251,1727415046597,-151.0,0.00019726,2]
[339260252,1727415046611,-151.0,0.00019726,2]
[339260253,1727415046624,-151.0,0.00019726,2]
[339260254,1727415046635,-188.344814,0.00019726,2]
[339260255,1727415046647,-289.462484,0.00019726,2]
[339260256,1727415046659,-221.310272,0.00019726,2]
[339260257,1727415046670,-500.0,0.00019726,2]
[339260258,1727415046682,-151.0,0.00019726,2]
[339260259,1727415046695,-152.530097,0.00019726,2]
[339260260,1727415046706,-164.399626,0.00019726,2]
[339260261,1727415046717,-164.399626,0.00019726,2]
[339260262,1727415046728,-585.42,0.00019726,2]
[339260263,1727415046738,-227.93339661,0.00019726,2]
[339260264,1727415046748,-1068.7,0.00019726,2]
[339260265,1727415046759,-151.0,0.00019726,2]
[339260266,1727415046770,-151.0,0.00019726,2]
[339260267,1727415046780,-1236.93,0.00019726,2]
[339260268,1727415046794,-151.0,0.00019726,2]
[339260269,1727415046804,-151.0,0.00019726,2]
[339260270,1727415046816,-552.07,0.00019726,2]
[339260271,1727415046829,-458.86809829,0.00019726,2]
[339260272,1727415046840,-151.0,0.00019726,2]
[339260273,1727415046851,-151.0,0.00019726,2]
[339260274,1727415046863,-1044.73,0.00019726,2]
[339260275,1727415046874,-151.0,0.00019726,2]
[339260276,1727415046887,-151.0,0.00019726,2]
[339260277,1727415046899,-1987.76,0.00019726,2]
[339260278,1727415046911,-151.0,0.00019726,2]
[339260279,1727415046922,-151.0,0.00019726,2]
[339260280,1727415046934,-500.0,0.00019726,2]
[339260281,1727415046947,-500.0,0.00019726,2]
[339260282,1727415046959,-260.090257,0.00019726,2]
[339260283,1727415046971,-151.0,0.00019726,2]
[339260284,1727415046983,-260.090257,0.00019726,2]
[339260285,1727415046995,-525.19,0.00019726,2]
[339260286,1727415047008,-151.0,0.00019726,2]
[339260287,1727415047019,-541.25309905,0.00019726,2]
[339260288,1727415047030,-233.94,0.00019726,2]
[339260289,1727415047045,-5000.0,0.00019726,2]
[339260290,1727415047058,-151.0,0.00019726,2]
[339260291,1727415047069,-662.74,0.00019726,2]
[339260292,1727415047080,-543.63178,0.00019726,2]
[339260293,1727415047091,-543.63178,0.00019726,2]
[339260294,1727415047102,-1000.0,0.00019726,2]
[339260295,1727415047115,-205.720564,0.00019726,2]
[339260296,1727415047126,-205.720564,0.00019726,2]
[339260297,1727415047137,-500.0,0.00019726,2]
[339260298,1727415047148,-151.0,0.00019726,2]
[339260299,1727415047159,-500.0,0.00019726,2]
[339260300,1727415047170,-151.0,0.00019726,2]
[339260301,1727415047181,-11087.22087882,0.00019726,2]
[339260302,1727415107849,-500.0,0.00021917,120]
[339260303,1727415107877,-115.0,0.00021917,120]
[339260304,1727415107900,-385.0,0.00021917,120]
[339260305,1727415107911,-115.0,0.00021917,120]
[339260306,1727415107932,-500.0,0.00021917,120]
[339260308,1727415368885,-0.28247973,0.00021917,120]
[339260309,1727415368966,-5434.43504054,0.0002204,120]
[339260310,1727415391219,15389.0,0.00021,60]
[339260316,1727415844374,5000.0,0.00014111,2]
[339260317,1727415852577,5000.0,0.00014111,2]
[339260318,1727415860528,5000.0,0.00014111,2]
[339260319,1727415868474,5000.0,0.00014111,2]
[339260320,1727415877132,5000.0,0.00014111,2]
[339260321,1727415885508,5000.0,0.00014111,2]
[339260322,1727415893832,5000.0,0.00014111,2]
[339260323,1727415901936,5000.0,0.00014111,2]
[339260324,1727415909876,5000.0,0.00014111,2]
[339260325,1727415918276,5000.0,0.00014111,2]
[339260326,1727415926379,5000.0,0.00014111,2]
[339260328,1727415934885,5000.0,0.00014111,2]
[339260329,1727415944708,243.39899971,0.00014111,2]
[339260330,1727415952606,5000.0,0.00014111,2]
[339260331,1727415967791,5000.0,0.00014111,2]
[339260332,1727415984068,5000.0,0.00014111,2]
[339260333,1727415999793,5000.0,0.00014111,2]
[339260334,1727416015087,5000.0,0.00014111,2]
[339260335,1727416032366,5000.0,0.00014111,2]
[339260336,1727416033111,-343.3115541,0.00015061,2]
[339260337,1727416046104,-475.9142006,0.00015061,2]
[339260338,1727416046127,-3000.0,0.00016,2]
[339260339,1727416046148,-2437.48307253,0.0001601,2]
[339260340,1727416046182,-178.70799372,0.0001601,2]
[339260341,1727416047687,5000.0,0.00014111,2]
[339260342,1727416053143,-383.80893375,0.0001601,2]
[339260343,1727416053164,-40.45850003,0.00016019,2]
[339260344,1727416064027,709.79950455,0.00014111,2]
[339260347,1727416157107,-203.085971,0.00015068,2]
[339260348,1727416157131,-2573.46324307,0.0001602,2]
[339260349,1727416160105,-426.53675693,0.0001602,2]
[339260350,1727416160131,-3000.0,0.0001603,2]
[339260351,1727416160154,-3000.0,0.0001604,2]
[339260352,1727416160174,-300.0,0.00016049,2]
[339260353,1727416160195,-300.0,0.00016049,2]
[339260354,1727416160218,-3000.0,0.0001605,2]
[339260355,1727416160240,-3000.0,0.0001606,2]
[339260356,1727416160260,-3000.0,0.0001607,2]
[339260357,1727416160281,-3000.0,0.0001608,2]
[339260358,1727416160302,-3000.0,0.0001609,2]
[339260359,1727416160326,-500.0,0.00016099,2]
[339260360,1727416160347,-154.56437954,0.00016099,2]
[339260361,1727416160370,-361.53067135,0.00016099,2]
[339260362,1727416160393,-500.0,0.00016099,2]
[339260363,1727416160419,-500.0,0.00016099,2]
[339260364,1727416160441,-500.0,0.00016099,2]
[339260365,1727416160464,-500.0,0.00016099,2]
[339260366,1727416160487,-500.0,0.00016099,2]
[339260367,1727416160509,-3000.0,0.000161,2]
[339260368,1727416160530,-500.0,0.000161,2]
[339260369,1727416160552,-3000.0,0.0001611,2]
[339260370,1727416160573,-3000.0,0.0001612,2]
[339260371,1727416160595,-3000.0,0.0001613,2]
[339260372,1727416160616,-3000.0,0.0001614,2]
[339260373,1727416160637,-3000.0,0.0001615,2]
[339260374,1727416160663,-267.7720969,0.0001618,2]
[339260375,1727416160684,-166.666666,0.00016367,2]
[339260376,1727416160705,-347.095526,0.00016405,2]
[339260377,1727416160726,-500.0,0.00016648,2]
[339260378,1727416160748,-166.666666,0.00016793,2]
[339260379,1727416160768,-347.095526,0.0001709,2]
[339260380,1727416160790,-166.666666,0.0001722,2]
[339260381,1727416160811,-316.42383446,0.00017251,2]
[339260382,1727416161084,-183.57616554,0.00017251,2]
[339260383,1727416161110,-189.74420171,0.00017546,2]
[339260442,1727416238620,-347.095526,0.00017775,2]
[339260443,1727416238629,-500.0,0.00018159,2]
[339260444,1727416238639,-500.0,0.00018355,2]
[339260445,1727416238647,-173.97572926,0.00018978,2]
[339260454,1727416240107,-132.44839674,0.00018978,2]
[339260455,1727416240117,-277.65425032,0.00019067,2]
[339260456,1727416240127,-194.63628536,0.00019078,2]
[339260457,1727416240137,-108.03267051,0.0001908,2]
[339260458,1727416240149,-391.9673285,0.0001908,2]
[339260459,1727416240158,-306.0,0.00019081,2]
[339260460,1727416240167,-300.0,0.00019166,2]
[339260461,1727416240177,-300.0,0.00019166,2]
[339260462,1727416240186,-205.79815077,0.00019167,2]
[339260463,1727416240195,-166.33089011,0.00019167,2]
[339260464,1727416240205,-442.41025309,0.00019167,2]
[339260465,1727416240215,-500.0,0.00019167,2]
[339260466,1727416240224,-243.36686644,0.00019167,2]
[339260467,1727416240233,-500.0,0.00019167,2]
[339260468,1727416240242,-500.0,0.00019167,2]
[339260469,1727416240251,-285.21863788,0.00019167,2]
[339260470,1727416240261,-373.50340793,0.00019167,2]
[339260471,1727416240271,-199.64,0.00019168,3]
[339260472,1727416240280,-598.92,0.00019168,3]
[339260473,1727416240291,-64006.2568503,0.00019168,3]
[339260474,1727416240301,-32927.3850133,0.00019168,3]
[339260475,1727416240310,-151.0,0.00019178,2]
[339260476,1727416240320,-626.93950403,0.00019178,2]
[339260477,1727416240330,-614.41819999,0.00019178,2]
[339260478,1727416240339,-500.0,0.00019178,2]
[339260479,1727416240348,-500.0,0.00019178,2]
[339260480,1727416240358,-500.0,0.00019178,2]
[339260481,1727416240367,-513.58334214,0.00019178,2]
[339260482,1727416240377,-500.0,0.00019178,2]
[339260483,1727416240387,-500.0,0.00019178,2]
[339260484,1727416240396,-523.45704906,0.00019178,2]
[339260485,1727416240405,-567.91,0.00019178,2]
[339260486,1727416240415,-500.0,0.00019178,2]
[339260487,1727416240424,-1036.75,0.00019178,2]
[339260488,1727416240434,-1199.94,0.00019178,2]
[339260489,1727416240443,-535.56,0.00019178,2]
[339260490,1727416240454,-1013.49,0.00019178,2]
[339260491,1727416240464,-500.29800051,0.00019178,2]
[339260492,1727416240474,-165.55820456,0.00019178,2]
[339260493,1727416240483,-1450.78,0.00019178,2]
[339260494,1727416240493,-476.19780286,0.00019178,2]
[339260495,1727416240502,-500.0,0.00019178,2]
[339260496,1727416240512,-500.0,0.00019178,2]
[339260497,1727416240521,-377.7251503,0.00019178,2]
[339260498,1727416240531,-1000.0,0.00019178,2]
[339260499,1727416240540,-500.0,0.00019178,2]
[339260500,1727416240549,-500.0,0.00019178,2]
[339260501,1727416240558,-504.44823372,0.00019178,2]
[339260502,1727416240569,-500.0,0.00019178,2]
[339260503,1727416240578,-509.11825541,0.00019178,2]
[339260504,1727416240588,-500.0,0.00019178,2]
[339260505,1727416240597,-505.53742141,0.00019178,2]
[339260506,1727416240606,-325.57776313,0.00019178,2]
[339260507,1727416240616,-504.77009013,0.00019178,2]
[339260508,1727416240625,-500.0,0.00019178,2]
[339260509,1727416240635,-500.0,0.00019178,2]
[339260510,1727416240646,-621.71854752,0.00019178,2]
[339260511,1727416240656,-500.0,0.00019178,2]
[339260512,1727416240665,-509.06102621,0.00019178,2]
[339260513,1727416240677,-509.35228594,0.00019178,2]
[339260514,1727416240688,-504.53655273,0.00019178,2]
[339260515,1727416240698,-2051.26,0.00019178,2]
[339260516,1727416240707,-554.31378775,0.00019178,2]
[339260517,1727416240717,-500.0,0.00019178,2]
[339260518,1727416240728,-542.23158736,0.00019178,2]
[339260519,1727416240738,-500.0,0.00019178,2]
[339260520,1727416240748,-520.02277408,0.00019178,2]
[339260521,1727416240757,-500.0,0.00019178,2]
[339260522,1727416240767,-500.0,0.00019178,2]
[339260523,1727416240777,-522.83889569,0.00019178,2]
[339260524,1727416240787,-350.64891707,0.00019178,2]
[339260525,1727416240796,-512.27629729,0.00019178,2]
[339260526,1727416240805,-500.0,0.00019178,2]
[339260527,1727416240815,-500.0,0.00019178,2]
[339260528,1727416240824,-300.25769185,0.00019178,2]
[339260529,1727416240836,-636.20905029,0.00019178,2]
[339260530,1727416240847,-500.0,0.00019178,2]
[339260531,1727416240857,-500.0,0.00019178,2]
[339260532,1727416240867,-513.21772401,0.00019178,2]
[339260533,1727416240877,-501.58246172,0.00019178,2]
[339260534,1727416240888,-516.01800245,0.00019178,2]
[339260535,1727416240899,-507.91041414,0.00019178,2]
[339260536,1727416240908,-506.26085563,0.00019178,2]
[339260537,1727416240919,-504.69552132,0.00019178,2]
[339260538,1727416240930,-589.2748333,0.00019178,2]
[339260539,1727416240939,-509.33291434,0.00019178,2]
[339260540,1727416240950,-500.0,0.00019178,2]
[339260541,1727416240960,-544.43647367,0.00019178,2]
[339260542,1727416240969,-500.0,0.00019178,2]
[339260543,1727416240978,-317.78180645,0.00019178,2]
[339260544,1727416240987,-200.0,0.00019178,2]
[339260545,1727416240999,-506.60099789,0.00019178,2]
[339260546,1727416241008,-502.12015709,0.00019178,2]
[339260547,1727416241018,-500.0,0.00019178,2]
[339260548,1727416241029,-550.25,0.00019178,2]
[339260549,1727416241041,-507.22033891,0.00019178,2]
[339260550,1727416241053,-500.0,0.00019178,2]
[339260551,1727416241063,-500.0,0.00019178,2]
[339260552,1727416241072,-503.39237662,0.00019178,2]
[339260553,1727416241082,-505.8978561,0.00019178,2]
[339260554,1727416241091,-500.0,0.00019178,2]
[339260555,1727416241101,-500.0,0.00019178,2]
[339260556,1727416241111,-505.87965917,0.00019178,2]
[339260557,1727416241121,-502.35887065,0.00019178,2]
[339260558,1727416241134,-510.19242227,0.00019178,2]
[339260559,1727416241145,-500.0,0.00019178,2]
[339260560,1727416241154,-500.0,0.00019178,2]
[339260561,1727416241164,-500.0,0.00019178,2]
[339260562,1727416241173,-605.04087207,0.00019178,2]
[339260563,1727416241183,-502.41245971,0.00019178,2]
[339260564,1727416241192,-500.0,0.00019178,2]
[339260565,1727416241202,-505.93780842,0.00019178,2]
[339260566,1727416241211,-500.0,0.00019178,2]
[339260567,1727416241221,-505.36571462,0.00019178,2]
[339260568,1727416241230,-505.69260725,0.00019178,2]
[339260569,1727416241239,-500.0,0.00019178,2]
[339260570,1727416241249,-506.2286542,0.00019178,2]
[339260571,1727416241258,-539.19395915,0.00019178,2]
[339260572,1727416241267,-500.0,0.00019178,2]
[339260573,1727416241276,-641.03463898,0.00019178,2]
[339260574,1727416241286,-500.0,0.00019178,2]
[339260575,1727416241295,-2014.16,0.00019178,2]
[339260576,1727416241305,-500.0,0.00019178,2]
[339260577,1727416241315,-500.0,0.00019178,2]
[339260578,1727416241326,-500.0,0.00019178,2]
[339260579,1727416241336,-500.0,0.00019178,2]
[339260580,1727416241345,-500.0,0.00019178,2]
[339260581,1727416241355,-500.0,0.00019178,2]
[339260582,1727416241365,-358.48525124,0.00019178,2]
[339260583,1727416241374,-500.0,0.00019178,2]
[339260584,1727416241384,-500.0,0.00019178,2]
[339260585,1727416241393,-504.86259437,0.00019178,2]
[339260586,1727416241403,-613.62617819,0.00019178,2]
[339260587,1727416241413,-525.59760991,0.00019178,2]
[339260588,1727416241423,-500.0,0.00019178,2]
[339260589,1727416241432,-500.0,0.00019178,2]
[339260590,1727416241442,-500.0,0.00019178,2]
[339260591,1727416241451,-363.51621745,0.00019178,2]
[339260592,1727416241468,-507.34,0.00019178,2]
[339260593,1727416241477,-500.0,0.00019178,2]
[339260594,1727416241486,-500.0,0.00019178,2]
[339260595,1727416241495,-500.0,0.00019178,2]
[339260596,1727416241505,-500.0,0.00019178,2]
[339260597,1727416241515,-500.0,0.00019178,2]
[339260598,1727416241524,-500.0,0.00019178,2]
[339260599,1727416241535,-500.0,0.00019178,2]
[339260600,1727416241546,-500.0,0.00019178,2]
[339260601,1727416241556,-500.0,0.00019178,2]
[339260602,1727416241568,-501.83280177,0.00019178,2]
[339260603,1727416241578,-546.50690902,0.00019178,2]
[339260604,1727416241587,-537.57514377,0.00019178,2]
[339260605,1727416241596,-5000.0,0.00019178,2]
[339260606,1727416241606,-500.0,0.00019178,2]
[339260607,1727416241616,-579.09297161,0.00019178,2]
[339260608,1727416241625,-500.0,0.00019178,2]
[339260609,1727416241634,-500.0,0.00019178,2]
[339260610,1727416241644,-500.0,0.00019178,2]
[339260611,1727416241653,-500.0,0.00019178,2]
[339260612,1727416241662,-177.86813188,0.00019178,2]
[339260613,1727416241787,-18423.08,0.00019178,2]
[339260614,1727416241797,-500.15549867,0.00019178,2]
[339260615,1727416241807,-3475.0,0.00019178,2]
[339260616,1727416241816,-500.0,0.00019178,2]
[339260617,1727416241826,-500.0,0.00019178,2]
[339260618,1727416241835,-500.5314839,0.00019178,2]
[339260619,1727416241845,-158.160284,0.00019178,2]
[339260620,1727416241854,-205.98815,0.00019178,2]
[339260621,1727416241863,-1026.5451759,0.00019178,2]
[339260622,1727416241872,-445.4218728,0.00019178,4]
[339260623,1727416241881,-3825.46187001,0.00019231,2]
[339260706,1727416243193,-48.60869532,0.00019231,2]
[339260727,1727416246134,-19.85644375,0.0001926,2]
[339260728,1727416246166,-122.0615723,0.0001926,2]
[339260743,1727417145155,-1710.12657278,0.00016,2]
[339260744,1727417238217,-1072.18025475,0.00016,2]
[339260745,1727417240156,-217.69317247,0.00016,2]
[339260746,1727417240180,-143.85741455,0.00017548,2]
[339260747,1727417245099,-22.80925145,0.00017548,2]
[339260748,1727417245128,-244.838442,0.00017849,2]
[339260749,1727417245155,-165.901312,0.00017884,2]
[339260750,1727417245176,-474.1093784,0.00018027,2]
[339260751,1727417245200,-165.901312,0.00018195,2]
[339260752,1727417245221,-500.0,0.00018355,2]
[339260753,1727417245241,-150.0,0.00018415,2]
[339260754,1727417245264,-165.901312,0.00018505,2]
[339260755,1727417245286,-153.0,0.00018641,2]
[339260756,1727417245307,-153.0,0.00018641,2]
[339260757,1727417245327,-151.26606185,0.00018766,2]
[339260758,1727417245348,-153.2816296,0.00018778,2]
[339260759,1727417245368,-209.1374178,0.00018778,2]
[339260760,1727417245389,-415.6767509,0.00018778,2]
[339260761,1727417245410,-49.98334695,0.00018816,2]
[339260762,1727417249147,-115.91796505,0.00018816,2]
[339260763,1727417249168,-129.03200867,0.00019067,2]
[339260764,1727417352134,-166.666666,0.00017849,2]
[339260769,1727417370816,1346.92409535,0.00014111,2]
[339260809,1727417432448,-427.98467394,0.00019067,2]
[339260812,1727417432458,-269.27084866,0.00019068,2]
[339260813,1727417432468,-499.59496994,0.00019078,2]
[339260815,1727417432478,-1000.0,0.00019078,2]
[339260817,1727417432489,-269.27084864,0.00019136,2]
[339260819,1727417432500,-716.94,0.00019158,3]
[339260821,1727417432509,-300.0,0.00019166,2]
[339260823,1727417432519,-300.0,0.00019166,2]
[339260825,1727417432530,-500.0,0.00019167,2]
[339260827,1727417432539,-309.68717717,0.00019167,2]
[339260829,1727417432549,-500.0,0.00019167,2]
[339260831,1727417432560,-222.27304652,0.00019167,2]
[339260833,1727417432569,-500.0,0.00019167,2]
[339260835,1727417432580,-220.3568065,0.00019167,2]
[339260837,1727417432589,-193.61653236,0.00019168,2]
[339260839,1727417432599,-13594.97308882,0.00019168,3]
[339260922,1727417438568,-303.0,0.00019168,3]
[339260952,1727417439188,-352.75624611,0.00019168,3]
[339260953,1727417439383,-14703.17948771,0.00019168,3]
[339260954,1727417439395,-405.56735736,0.00019168,3]
[339260955,1727417439406,-290.21825122,0.00019168,3]
[339260956,1727417439421,-111251.96794278,0.00019168,3]
[339260957,1727417439431,-2678.30392368,0.00019168,3]
[339260958,1727417439440,-500.0,0.00019173,2]
[339260959,1727417439451,-500.0,0.00019173,2]
[339260960,1727417439461,-500.0,0.00019173,2]
[339260961,1727417439470,-502.95174599,0.00019173,2]
[339260962,1727417439479,-4124.07675378,0.00019178,2]
[339260963,1727417439492,-6340.70174556,0.00019178,2]
[339260964,1727417439501,-506.8130447,0.00019178,2]
[339260965,1727417439510,-510.96468312,0.00019178,2]
[339260966,1727417439519,-506.82071934,0.00019178,2]
[339260967,1727417439529,-500.0,0.00019178,2]
[339260968,1727417439538,-507.68139395,0.00019178,2]
[339260969,1727417439547,-595.25,0.00019178,2]
[339260970,1727417439557,-505.75552311,0.00019178,2]
[339260971,1727417439567,-502.37530805,0.00019178,2]
[339260972,1727417439577,-523.32495011,0.00019178,2]
[339260973,1727417439588,-500.0,0.00019178,2]
[339260974,1727417439598,-1131.86,0.00019178,2]
[339260975,1727417439607,-500.0,0.00019178,2]
[339260976,1727417439616,-1310.03,0.00019178,2]
[339260977,1727417439625,-500.0,0.00019178,2]
[339260978,1727417439634,-537.37373621,0.00019178,2]
[339260979,1727417439644,-494.81367335,0.00019178,2]
[339260980,1727417439654,-584.7,0.00019178,2]
[339260981,1727417439664,-150.16428715,0.00019178,2]
[339260982,1727417439673,-509.58871563,0.00019178,2]
[339260983,1727417439682,-506.6433691,0.00019178,2]
[339260984,1727417439692,-500.0,0.00019178,2]
[339260985,1727417439701,-503.05146831,0.00019178,2]
[339260986,1727417439710,-500.0,0.00019178,2]
[339260987,1727417439719,-500.0,0.00019178,2]
[339260988,1727417439728,-1062.28,0.00019178,2]
[339260989,1727417439737,-500.0,0.00019178,2]
[339260990,1727417439746,-572.12605362,0.00019178,2]
[339260991,1727417439755,-500.0,0.00019178,2]
[339260992,1727417439765,-500.0,0.00019178,2]
[339260993,1727417439774,-500.0,0.00019178,2]
[339260994,1727417439783,-500.0,0.00019178,2]
[339260995,1727417439792,-504.1519355,0.00019178,2]
[339260996,1727417439801,-500.0,0.00019178,2]
[339260997,1727417439811,-507.16289939,0.00019178,2]
[339260998,1727417439820,-510.17944481,0.00019178,2]
[339260999,1727417439829,-340.16622572,0.00019178,2]
[339261001,1727417439840,-502.64573123,0.00019178,2]
[339261002,1727417439849,-338.39572649,0.00019178,2]
[339261004,1727417439858,-504.58421127,0.00019178,2]
[339261007,1727417439867,-500.0,0.00019178,2]
[339261009,1727417439876,-409.24455849,0.00019178,2]
[339261010,1727417439885,-500.0,0.00019178,2]
[339261013,1727417439895,-500.0,0.00019178,2]
[339261015,1727417439904,-500.0,0.00019178,2]
[339261017,1727417439913,-500.0,0.00019178,2]
[339261018,1727417439922,-500.0,0.00019178,2]
[339261021,1727417439932,-500.0,0.00019178,2]
[339261023,1727417439941,-500.0,0.00019178,2]
[339261026,1727417439950,-315.69908596,0.00019178,2]